fUST/lending_fUST_20240716
["ID","MTS","AMOUNT","RATE_DAILY","PERIOD"]
[332246725,1721073046897,-5404.45649518,0.00021452,3]
[332246727,1721073046907,-60253.24921997,0.00021615,2]
[332246729,1721073046921,-19344.15224912,0.00021615,2]
[332246731,1721073046931,-19999.0,0.00021685,2]
[332246733,1721073046940,-510.27424571,0.00021808,2]
[332246735,1721073046950,-2000.0,0.00021817,2]
[332246736,1721073046960,-510.2742457,0.00021831,2]
[332246737,1721073046970,-510.2742457,0.00021854,2]
[332246738,1721073046980,-153.0,0.00021863,2]
[332246739,1721073046989,-153.0,0.00021863,2]
[332246740,1721073047000,-293.5691494,0.00021863,2]
[332246741,1721073047011,-293.5691494,0.00021863,2]
[332246742,1721073047020,-293.5691494,0.00021863,2]
[332246743,1721073047031,-242.2625822,0.00021863,2]
[332246744,1721073047040,-206.3900376,0.00021863,2]
[332246745,1721073047050,-153.0,0.00021863,2]
[332246746,1721073047060,-206.3900376,0.00021863,2]
[332246747,1721073047070,-206.3900376,0.00021863,2]
[332246748,1721073047080,-510.2742457,0.00021877,2]
[332246749,1721073047090,-150.112233,0.000219,4]
[332246750,1721073047100,-150.112233,0.000219,5]
[332246751,1721073047110,-150.112233,0.000219,2]
[332246752,1721073047119,-510.2742457,0.000219,2]
[332246753,1721073047129,-24007.6813509,0.00021907,3]
[332246754,1721073047139,-101024.81496064,0.00021907,3]
[332246755,1721073178494,273.37336231,9.9e-05,2]
[332246756,1721073204681,3361.85381771,0.00014999,2]
[332246757,1721073264732,9424.03256186,0.00014998,2]
[332246759,1721073405994,1350.53628133,0.00014999,2]
[332246760,1721073437121,287.0997448,0.00014999,2]
[332246761,1721073474410,441.04727659,0.00014999,2]
[332246762,1721073475039,91.60607712,0.00014999,2]
[332246763,1721073475066,817.47018165,0.00014999,2]
[332246764,1721073491631,993.45151834,0.00014999,2]
[332246765,1721073526977,203.02799735,0.00014999,2]
[332246766,1721073537860,154.82205658,0.00014999,2]
[332246767,1721073588254,1286.94501432,0.00014999,2]
[332246768,1721073630629,1026.73530797,0.00015,2]
[332246769,1721073634414,441.04727659,0.00014999,2]
[332246770,1721073644634,667.50861858,0.00014999,2]
[332246771,1721073686857,156.11661748,0.00014999,2]
[332246772,1721073705367,156.30692249,0.00014999,2]
[332246773,1721073709039,263.29031622,0.00015998,2]
[332246774,1721073758838,209.2624115,0.00014999,2]
[332246775,1721073799425,441.04727659,0.00014999,2]
[332246776,1721073813576,209.06971402,0.00014999,2]
[332246778,1721073945404,280.75134919,0.00014999,2]
[332246779,1721073958947,441.12586768,0.00014999,2]
[332246780,1721074076596,187.84280407,0.00014999,2]
[332246781,1721074094916,441.12586768,0.00014999,2]
[332246802,1721074232662,-440.89009441,0.00016255,2]
[332246803,1721074232671,-309.10360033,0.0001818,2]
[332246804,1721074232680,-537.79554004,0.000189,2]
[332246805,1721074232690,-293.79355816,0.0002,2]
[332246806,1721074232699,-187.676254,0.00020139,2]
[332246807,1721074232708,-201.738142,0.00020428,2]
[332246808,1721074232719,-285.0,0.00021095,2]
[332246809,1721074232728,-750.0,0.00021096,2]
[332246810,1721074232738,-928.8537587,0.00021697,2]
[332246811,1721074232747,-242.2411732,0.00021807,2]
[332246812,1721074232757,-373.35065546,0.00021807,2]
[332246825,1721074237834,-547.3820516,0.00021807,2]
[332246944,1721074243047,-156.01263721,0.00021807,2]
[332246945,1721074243056,-300.0,0.00021816,2]
[332246946,1721074243066,-3849.0419744,0.00021817,3]
[332246969,1721074247440,440.89009441,0.00014999,2]
[332246970,1721074441575,385.79995704,0.00014999,2]
[332246971,1721074444306,156.34967908,0.00014999,2]
[332246973,1721074448280,416.86002995,0.00014999,2]
[332246974,1721074452908,158.29964009,0.00014999,2]
[332246975,1721074454024,156.27535265,0.00014999,2]
[332246976,1721074456185,154.97688251,0.00014999,2]
[332246977,1721074468222,301.52805697,0.00015,2]
[332246978,1721074470140,314.06229585,0.00014999,2]
[332246979,1721074478581,159.8423972,0.00014999,2]
[332246980,1721074479125,321.06886241,0.00015,2]
[332246981,1721074495676,431.28948156,0.00014999,2]
[332246982,1721074583684,4089.54730996,0.00014999,2]
[332246983,1721074643079,189.85711654,0.00014999,2]
[332246984,1721074866202,3543.84347111,0.00014999,2]
[332246988,1721075228866,794.5289758,0.00014999,2]
[332246989,1721075249032,2121.85652379,0.00014999,2]
[332246997,1721075342028,154.68290005,0.00014999,2]
[332247036,1721075432640,-276.75070729,0.00016972,2]
[332247037,1721075432651,-470.85922643,0.0001818,2]
[332247038,1721075432698,-1449.08551907,0.0001818,2]
[332247039,1721075432707,-154.71370255,0.00018798,2]
[332247040,1721075432716,-611.67724376,0.000189,2]
[332247041,1721075432727,-197.51297718,0.00019,2]
[332247042,1721075432736,-374.68623665,0.00019165,2]
[332247043,1721075432745,-300.0,0.00019712,2]
[332247044,1721075432754,-2907.95938728,0.00019713,2]
[332247045,1721075432765,-329.16322832,0.00019713,2]
[332247079,1721075438074,-4660.11070212,0.00019713,2]
[332247260,1721075446126,-1365.20187638,0.00019713,2]
[332247261,1721075446136,-400.0,0.00019929,2]
[332247262,1721075446146,-162.3678794,0.00019976,2]
[332247263,1721075446157,-293.79355816,0.0002,2]
[332247264,1721075446166,-203.78426724,0.0002,2]
[332247265,1721075446178,-1143.47572261,0.0002,2]
[332247266,1721075446187,-309.13442438,0.0002,2]
[332247267,1721075446196,-4032.3183316,0.0002,2]
[332247268,1721075446206,-620.02527317,0.00020177,2]
[332247269,1721075446216,-201.738142,0.00020255,2]
[332247270,1721075446225,-153.0,0.00020548,2]
[332247271,1721075446235,-153.0,0.00020778,2]
[332247272,1721075446245,-1581.84023226,0.00021,2]
[332247273,1721075446258,-1001.42615586,0.00021,2]
[332247274,1721075446267,-1217.67460256,0.00021096,5]
[332247275,1721075446278,-357.7551326,0.00021096,5]
[332247276,1721075446289,-304.34410798,0.00021096,5]
[332247280,1721075565076,273.37336231,9.9e-05,2]
[332247281,1721075581584,273.37336231,9.9e-05,2]
[332247282,1721075590628,273.37336231,9.9e-05,2]
[332247283,1721075599114,273.37336231,9.9e-05,2]
[332247285,1721075608188,273.37336231,9.9e-05,2]
[332247287,1721075671598,868.50542955,0.00012,2]
[332247288,1721075897152,1430.92434117,0.00014545,2]
[332247289,1721075907229,187.81362505,0.00014545,2]
[332247290,1721075921272,1691.69051094,0.00014545,2]
[332247296,1721076370561,464.06103554,0.00014999,2]
[332247297,1721076495544,273.37336231,9.9e-05,2]
[332247302,1721076540863,710.62866484,0.00012,2]
[332247303,1721076552675,182.82989065,0.00014999,2]
[332247420,1721076633003,-191.27347695,0.0001818,2]
[332247423,1721076633014,-704.48483568,0.000188,2]
[332247425,1721076633025,-407.78482918,0.000189,2]
[332247428,1721076633035,-197.51297718,0.00019039,2]
[332247430,1721076633046,-3000.0,0.00019894,2]
[332247432,1721076633056,-189.46800755,0.0002,2]
[332247434,1721076633072,-245.53199245,0.0002,2]
[332247436,1721076633082,-293.79355816,0.0002,2]
[332247438,1721076633092,-65.67443315,0.00020105,2]
[332247440,1721076633105,-434.32556685,0.00020105,2]
[332247442,1721076633115,-187.676254,0.00020124,2]
[332247444,1721076633126,-400.0,0.00020177,2]
[332247446,1721076633136,-352.95767281,0.00020203,2]
[332247448,1721076633146,-576.69,0.00020242,2]
[332247450,1721076633157,-153.0,0.00020378,2]
[332247452,1721076633168,-352.95767281,0.00020497,2]
[332247455,1721076633179,-153.0,0.00020578,2]
[332247457,1721076633189,-131.33767847,0.00020582,2]
[332247461,1721076633219,-221.61999435,0.00020582,2]
[332247463,1721076633228,-300.0,0.00020718,2]
[332247465,1721076633238,-3559.73402257,0.00020719,2]
[332247467,1721076633248,-400.0,0.00021,2]
[332247469,1721076633259,-750.0,0.00021096,2]
[332247471,1721076633268,-225.98775772,0.00021096,2]
[332247473,1721076633280,-764.72891361,0.00021096,2]
[332247475,1721076633290,-428.79128116,0.00021096,2]
[332247477,1721076633300,-43.28772967,0.00021186,2]
[332247860,1721076646297,-576.71353399,0.00021186,2]
[332247861,1721076646307,-153.0,0.00021315,2]
[332247862,1721076646318,-153.0,0.00021315,2]
[332247863,1721076646327,-1000.0,0.0002164,2]
[332247864,1721076646337,-464.4268793,0.00021697,2]
[332247865,1721076646346,-1200.36735624,0.00021716,2]
[332247866,1721076646356,-845.15916543,0.00021717,2]
[332247867,1721076646366,-845.15916539,0.00021742,2]
[332247868,1721076646375,-1000.0,0.00021761,2]
[332247869,1721076646385,-845.15916539,0.00021767,2]
[332247870,1721076646395,-845.15916539,0.00021792,2]
[332247871,1721076646404,-4531.50465494,0.00021796,3]
[332247872,1721076646414,-1000.0,0.00021796,2]
[332247873,1721076646423,-2000.0,0.00021797,2]
[332247874,1721076646433,-1000.0,0.00021804,2]
[332247875,1721076646443,-10935.66137318,0.00021806,5]
[332247876,1721076646453,-28034.79961673,0.00021807,3]
[332247879,1721076769102,189.73979155,0.00014999,2]
[332247880,1721076771883,434.82719992,0.00014999,2]
[332247881,1721076795207,202.78437057,0.00014999,2]
[332247956,1721077833268,-276.910965,0.00016722,2]
[332247957,1721077833278,-160.03553055,0.000189,2]
[332247958,1721077833288,-725.89178378,0.000189,2]
[332247959,1721077833299,-317.95811869,0.00019,2]
[332247960,1721077833308,-400.0,0.00019139,2]
[332247961,1721077833318,-356.49268176,0.00019833,2]
[332247962,1721077833328,-300.0,0.00019999,2]
[332247963,1721077833338,-4880.61231454,0.0002,2]
[332247964,1721077833354,-750.24459403,0.0002,2]
[332247965,1721077833364,-764.72891361,0.0002,2]
[332247966,1721077833373,-225.98775772,0.0002,2]
[332247967,1721077833382,-435.0,0.0002,2]
[332247968,1721077833392,-222.66464781,0.0002,2]
[332247969,1721077833402,-356.49268176,0.00020015,2]
[332247970,1721077833411,-4995.09886514,0.00020055,2]
[332247972,1721077833420,-620.00006318,0.00020177,2]
[332247974,1721077833431,-4995.09886514,0.00020494,2]
[332247976,1721077833443,-356.49268176,0.00020507,2]
[332247978,1721077833459,-151.0,0.00020627,2]
[332247980,1721077833468,-151.0,0.00020627,2]
[332247981,1721077833479,-151.0,0.00020627,2]
[332247983,1721077833492,-151.0,0.00020627,2]
[332247985,1721077833503,-154.097136,0.00020627,2]
[332247987,1721077833512,-151.0,0.00020627,2]
[332247988,1721077833521,-151.0,0.00020627,2]
[332247990,1721077833530,-151.0,0.00020627,2]
[332247992,1721077833541,-151.0,0.00020627,2]
[332247994,1721077833552,-151.0,0.00020627,2]
[332247996,1721077833563,-356.49268176,0.00020634,2]
[332247999,1721077833573,-151.0,0.00020651,2]
[332248001,1721077833583,-151.0,0.00020651,2]
[332248002,1721077833593,-151.0,0.00020651,2]
[332248005,1721077833603,-151.0,0.00020651,2]
[332248007,1721077833612,-151.0,0.00020651,2]
[332248009,1721077833622,-151.0,0.00020651,2]
[332248024,1721077833762,-227.960504,0.00020651,2]
[332248026,1721077833772,-227.960504,0.00020651,2]
[332248028,1721077833782,-179.60259,0.00020651,2]
[332248030,1721077833792,-179.60259,0.00020651,2]
[332248032,1721077833801,-151.0,0.00020651,2]
[332248034,1721077833811,-151.905224,0.00020651,2]
[332248036,1721077833821,-151.0,0.00020651,2]
[332248038,1721077833830,-151.0,0.00020651,2]
[332248040,1721077833840,-151.0,0.00020651,2]
[332248042,1721077833850,-338.425316,0.00020651,2]
[332248045,1721077833860,-338.425316,0.00020651,2]
[332248047,1721077833870,-151.0,0.00020651,2]
[332248049,1721077833880,-151.0,0.00020651,2]
[332248050,1721077833892,-151.0,0.00020651,2]
[332248053,1721077833902,-151.0,0.00020651,2]
[332248055,1721077833912,-151.0,0.00020651,2]
[332248056,1721077833921,-151.0,0.00020651,2]
[332248058,1721077833931,-151.0,0.00020651,2]
[332248060,1721077833941,-151.0,0.00020651,2]
[332248062,1721077833951,-151.0,0.00020651,2]
[332248065,1721077833961,-151.0,0.00020651,2]
[332248067,1721077833971,-151.0,0.00020651,2]
[332248069,1721077833980,-151.0,0.00020651,2]
[332248071,1721077833989,-519.78063,0.00020651,2]
[332248073,1721077833999,-519.78063,0.00020651,2]
[332248075,1721077834008,-151.0,0.00020651,2]
[332248077,1721077834018,-151.0,0.00020651,2]
[332248079,1721077834028,-151.0,0.00020667,2]
[332248081,1721077834038,-151.0,0.00020667,2]
[332248083,1721077834049,-231.86173,0.00020667,2]
[332248085,1721077834059,-151.0,0.00020667,2]
[332248087,1721077834068,-151.0,0.00020667,2]
[332248089,1721077834077,-151.0,0.00020667,2]
[332248091,1721077834087,-151.0,0.00020667,2]
[332248093,1721077834097,-154.60421,0.00020667,2]
[332248095,1721077834106,-151.0,0.00020667,2]
[332248097,1721077834116,-151.0,0.00020667,2]
[332248099,1721077834127,-152.783557,0.00020667,2]
[332248101,1721077834137,-151.0,0.00020667,2]
[332248103,1721077834147,-519.78063,0.00020667,2]
[332248105,1721077834157,-519.78063,0.00020667,2]
[332248107,1721077834168,-151.0,0.00020667,2]
[332248109,1721077834178,-151.0,0.00020667,2]
[332248112,1721077834189,-4995.09886514,0.00020753,2]
[332248114,1721077834198,-153.0,0.00020767,2]
[332248116,1721077834208,-151.0,0.00020775,2]
[332248118,1721077834218,-151.0,0.00020775,2]
[332248120,1721077834228,-151.0,0.00020775,2]
[332248122,1721077834237,-227.960504,0.00020775,2]
[332248124,1721077834247,-227.960504,0.00020775,2]
[332248126,1721077834257,-179.60259,0.00020775,2]
[332248128,1721077834267,-179.60259,0.00020775,2]
[332248130,1721077834277,-151.0,0.00020775,2]
[332248132,1721077834287,-151.0,0.00020775,2]
[332248134,1721077834296,-151.0,0.00020775,2]
[332248136,1721077834305,-151.0,0.00020775,2]
[332248138,1721077834316,-338.425316,0.00020775,2]
[332248140,1721077834325,-338.425316,0.00020775,2]
[332248141,1721077834335,-338.425316,0.00020787,2]
[332248143,1721077834344,-338.425316,0.00020787,2]
[332248145,1721077834353,-151.0,0.00020787,2]
[332248147,1721077834363,-151.0,0.00020787,2]
[332248149,1721077834373,-151.0,0.00020787,2]
[332248150,1721077834382,-151.0,0.00020787,2]
[332248152,1721077834392,-151.0,0.00020787,2]
[332248154,1721077834401,-151.0,0.00020787,2]
[332248156,1721077834411,-151.0,0.00020787,2]
[332248158,1721077834421,-151.0,0.00020787,2]
[332248160,1721077834431,-519.78063,0.00020787,2]
[332248161,1721077834440,-151.0,0.00020787,2]
[332248163,1721077834450,-519.78063,0.00020787,2]
[332248165,1721077834461,-151.0,0.00020787,2]
[332248167,1721077834473,-151.0,0.00020799,2]
[332248169,1721077834482,-238.864484,0.00020799,2]
[332248171,1721077834492,-151.0,0.00020799,2]
[332248173,1721077834503,-255.237363,0.00020799,2]
[332248175,1721077834514,-519.78063,0.00020799,2]
[332248176,1721077834524,-519.78063,0.00020799,2]
[332248178,1721077834535,-151.0,0.00020799,2]
[332248180,1721077834546,-151.0,0.0002082,2]
[332248182,1721077834556,-179.60259,0.0002082,2]
[332248183,1721077834567,-179.60259,0.0002082,2]
[332248185,1721077834577,-151.0,0.0002082,2]
[332248187,1721077834587,-151.0,0.0002082,2]
[332248188,1721077834597,-151.0,0.0002082,2]
[332248189,1721077834607,-151.0,0.0002082,2]
[332248190,1721077834617,-151.0,0.00020831,2]
[332248191,1721077834626,-151.0,0.00020831,2]
[332248192,1721077834636,-519.78063,0.00020831,2]
[332248193,1721077834645,-519.78063,0.00020831,2]
[332248194,1721077834655,-151.0,0.00020831,2]
[332248195,1721077834664,-1995.48450472,0.00020853,2]
[332248196,1721077834682,-1519.78938365,0.00020853,2]
[332248253,1721077838607,-151.0,0.00020651,2]
[332248255,1721077838617,-151.0,0.00020667,2]
[332248256,1721077838628,-151.0,0.00020775,2]
[332248259,1721077838637,-715.57482,0.00020853,2]
[332248342,1721077998509,456.669045,0.00014999,2]
[332248343,1721078002938,3023.63097548,0.0001655,5]
[332248356,1721078487249,616.54,0.0002402,120]
[332248357,1721078530266,400.0,7.4e-07,120]
[332248358,1721078634945,491.45116219,0.000151,2]
[332248360,1721078693616,1055.17043804,0.00014999,2]
[332248361,1721078717491,1229.95449669,0.00015,2]
[332248376,1721078885748,270.5778495,0.00014999,2]
[332248399,1721079026167,518.94296441,0.00014999,2]
[332248431,1721079036893,187.87198309,0.00014999,2]
[332248479,1721079041047,-483.92785585,0.000189,2]
[332248481,1721079041057,-375.07183976,0.00019165,2]
[332248483,1721079041066,-400.0,0.00019514,2]
[332248485,1721079041075,-250.0,0.00019551,2]
[332248487,1721079041085,-165.166253,0.00019585,2]
[332248490,1721079041094,-187.676254,0.00019624,2]
[332248492,1721079041103,-594.545968,0.00019855,2]
[332248494,1721079041113,-300.0,0.00019999,2]
[332248496,1721079041123,-158.74683762,0.0002,2]
[332248498,1721079041132,-1212.95786393,0.0002,2]
[332248500,1721079041141,-293.79355816,0.0002,2]
[332248502,1721079041150,-225.6950033,0.0002,2]
[332248504,1721079041159,-154.66278073,0.0002,2]
[332248505,1721079041168,-3584.81596235,0.00020049,2]
[332248507,1721079041177,-356.49268178,0.00020155,2]
[332248510,1721079041188,-356.49268178,0.00020359,2]
[332248511,1721079041198,-3584.81596235,0.00020526,2]
[332248512,1721079041207,-3584.81596235,0.00020657,2]
[332248513,1721079041217,-150.0,0.00020722,2]
[332248514,1721079041226,-356.49268178,0.00020739,2]
[332248515,1721079041235,-153.0,0.00020804,2]
[332248516,1721079041244,-475.64834658,0.00020853,2]
[332248517,1721079041253,-764.72891361,0.00020853,2]
[332248518,1721079041264,-6139.66185879,0.00021,2]
[332248519,1721079041273,-750.0,0.00021096,2]
[332248520,1721079041283,-151.0,0.00021143,2]
[332248521,1721079041292,-151.0,0.00021143,2]
[332248522,1721079041301,-620.00000316,0.00021186,2]
[332248523,1721079041310,-151.0,0.00021186,2]
[332248524,1721079041320,-151.0,0.00021186,2]
[332248525,1721079041329,-151.0,0.00021186,2]
[332248526,1721079041338,-151.0,0.00021186,2]
[332248527,1721079041347,-151.0,0.00021186,2]
[332248528,1721079041356,-151.0,0.00021186,2]
[332248529,1721079041368,-151.0,0.00021186,2]
[332248530,1721079041377,-151.0,0.00021186,2]
[332248531,1721079041386,-151.0,0.00021186,2]
[332248532,1721079041395,-151.0,0.00021186,2]
[332248533,1721079041403,-151.0,0.00021186,2]
[332248534,1721079041412,-151.0,0.00021186,2]
[332248535,1721079041421,-151.0,0.00021186,2]
[332248536,1721079041430,-720.761242,0.00021186,2]
[332248537,1721079041439,-151.0,0.00021204,2]
[332248538,1721079041448,-151.0,0.00021204,2]
[332248539,1721079041457,-182.368403,0.00021204,2]
[332248540,1721079041466,-259.890315,0.00021204,2]
[332248541,1721079041475,-182.368403,0.00021204,2]
[332248542,1721079041484,-259.890315,0.00021204,2]
[332248543,1721079041493,-236.897721,0.00021204,2]
[332248544,1721079041502,-236.897721,0.00021204,2]
[332248545,1721079041511,-151.0,0.00021217,2]
[332248546,1721079041520,-151.0,0.00021217,2]
[332248547,1721079041529,-151.0,0.00021251,2]
[332248548,1721079041538,-151.0,0.00021251,2]
[332248549,1721079041547,-151.0,0.00021251,2]
[332248550,1721079041556,-151.0,0.00021251,2]
[332248551,1721079041565,-151.0,0.00021251,2]
[332248552,1721079041574,-151.0,0.00021251,2]
[332248553,1721079041583,-249.124673,0.00021251,2]
[332248554,1721079041592,-151.0,0.00021251,2]
[332248555,1721079041602,-151.0,0.00021251,2]
[332248556,1721079041612,-534.86778363,0.00021356,2]
[332248557,1721079041621,-192.124414,0.00021464,2]
[332248558,1721079041631,-151.0,0.00021464,2]
[332248559,1721079041639,-151.0,0.00021464,2]
[332248560,1721079041649,-151.0,0.00021464,2]
[332248561,1721079041658,-151.0,0.00021464,2]
[332248562,1721079041668,-280.301268,0.00021464,2]
[332248563,1721079041677,-151.0,0.00021464,2]
[332248564,1721079041686,-151.0,0.00021464,2]
[332248565,1721079041696,-151.0,0.00021464,2]
[332248566,1721079041705,-151.0,0.00021464,2]
[332248567,1721079041714,-151.0,0.00021464,2]
[332248568,1721079041723,-151.0,0.00021464,2]
[332248569,1721079041731,-151.0,0.00021464,2]
[332248570,1721079041740,-151.0,0.00021464,2]
[332248571,1721079041750,-151.0,0.00021464,2]
[332248572,1721079041759,-151.0,0.00021464,2]
[332248573,1721079041769,-196.70702,0.00021464,2]
[332248574,1721079041778,-151.0,0.00021464,2]
[332248575,1721079041788,-151.0,0.00021464,2]
[332248576,1721079041797,-151.0,0.00021464,2]
[332248577,1721079041807,-151.0,0.00021464,2]
[332248578,1721079041816,-151.0,0.00021464,2]
[332248579,1721079041826,-182.368403,0.00021464,2]
[332248580,1721079041835,-182.368403,0.00021464,2]
[332248581,1721079041845,-140.59981604,0.00021464,2]
[332248636,1721079137109,500.0,0.00014999,2]
[332248637,1721079180154,268.92743618,0.00014999,2]
[332248707,1721080231930,-345.92209736,0.00016255,2]
[332248708,1721080231941,-440.18195524,0.000189,2]
[332248709,1721080231952,-187.676254,0.00019479,2]
[332248710,1721080231962,-161.272065,0.00019609,2]
[332248711,1721080231971,-400.0,0.00019789,2]
[332248714,1721080231982,-297.272984,0.00019822,2]
[332248716,1721080231992,-659.59314191,0.0002,2]
[332248718,1721080232001,-1066.73188738,0.0002,2]
[332248720,1721080232011,-293.79355816,0.0002,2]
[332248722,1721080232021,-620.05721283,0.00020177,2]
[332248724,1721080232031,-362.48591866,0.000203,2]
[332248726,1721080232042,-300.0,0.0002049,2]
[332248728,1721080232053,-5143.65643711,0.00020491,2]
[332248730,1721080232065,-5143.65643711,0.00020677,2]
[332248733,1721080232077,-362.48591866,0.0002071,2]
[332248735,1721080232086,-362.48591866,0.00021062,2]
[332248737,1721080232097,-5143.65643711,0.00021066,2]
[332248739,1721080232106,-739.480321,0.00021096,2]
[332248741,1721080232115,-150.60173835,0.00021109,2]
[332248742,1721080232124,-620.00286064,0.00021186,2]
[332248744,1721080232133,-362.48591869,0.00021263,2]
[332248746,1721080232142,-5143.65643711,0.0002135,2]
[332248748,1721080232151,-1000.0,0.00021363,2]
[332248750,1721080232161,-306.0,0.0002137,2]
[332248752,1721080232170,-1729.65505171,0.0002138,2]
[332248754,1721080232179,-305.75657489,0.00021424,2]
[332248757,1721080232189,-4111.30430591,0.00021457,2]
[332248759,1721080232198,-151.0,0.0002148,2]
[332248761,1721080232207,-151.0,0.0002148,2]
[332248763,1721080232216,-151.0,0.0002148,2]
[332248765,1721080232225,-151.0,0.0002148,2]
[332248767,1721080232235,-226.871292,0.0002148,2]
[332248769,1721080232243,-151.0,0.0002148,2]
[332248771,1721080232253,-226.871292,0.0002148,2]
[332248773,1721080232266,-151.0,0.0002148,2]
[332248775,1721080232275,-213.847813,0.0002148,2]
[332248777,1721080232286,-13284.99306762,0.00021522,5]
[332248779,1721080232295,-151.0,0.00021522,2]
[332248781,1721080232306,-151.0,0.00021522,2]
[332248783,1721080232315,-151.0,0.00021522,2]
[332248785,1721080232324,-151.0,0.00021522,2]
[332248787,1721080232334,-151.0,0.00021522,2]
[332248789,1721080232344,-151.0,0.00021522,2]
[332248791,1721080232354,-151.0,0.00021522,2]
[332248793,1721080232363,-151.0,0.00021522,2]
[332248795,1721080232372,-151.0,0.00021522,2]
[332248797,1721080232381,-151.0,0.00021522,2]
[332248799,1721080232391,-151.0,0.00021522,2]
[332248801,1721080232399,-151.0,0.00021522,2]
[332248802,1721080232408,-268.017976,0.00021522,2]
[332248804,1721080232417,-151.0,0.00021522,2]
[332248807,1721080232426,-151.771295,0.00021522,2]
[332248809,1721080232435,-151.0,0.00021522,2]
[332248811,1721080232444,-151.0,0.00021522,2]
[332248813,1721080232453,-151.0,0.00021522,2]
[332248815,1721080232462,-249.436256,0.00021522,2]
[332248817,1721080232471,-151.0,0.00021522,2]
[332248819,1721080232481,-151.0,0.00021522,2]
[332248821,1721080232490,-151.0,0.00021522,2]
[332248822,1721080232500,-151.0,0.00021522,2]
[332248825,1721080232509,-213.207949,0.00021522,2]
[332248826,1721080232518,-213.207949,0.00021522,2]
[332248828,1721080232527,-213.207949,0.00021522,2]
[332248831,1721080232538,-213.207949,0.00021522,2]
[332248833,1721080232548,-151.0,0.00021522,2]
[332248835,1721080232557,-151.0,0.00021522,2]
[332248837,1721080232567,-151.0,0.00021522,2]
[332248839,1721080232576,-151.0,0.00021522,2]
[332248841,1721080232585,-226.871292,0.00021522,2]
[332248843,1721080232594,-151.0,0.00021522,2]
[332248845,1721080232604,-226.871292,0.00021522,2]
[332248847,1721080232613,-151.0,0.00021522,2]
[332248849,1721080232622,-151.0,0.00021522,2]
[332248851,1721080232631,-151.0,0.00021522,2]
[332248853,1721080232640,-155.846958,0.00021522,2]
[332248855,1721080232649,-151.0,0.00021522,2]
[332248857,1721080232658,-151.0,0.00021522,2]
[332248859,1721080232666,-2510.54550567,0.00021548,2]
[332248861,1721080232676,-351.05,0.0002155,3]
[332248863,1721080232685,-325.97,0.0002155,3]
[332248865,1721080232694,-162.99,0.0002155,3]
[332248867,1721080232703,-488.98,0.0002155,3]
[332248869,1721080232712,-151.0,0.0002155,2]
[332248871,1721080232721,-151.0,0.0002155,2]
[332248873,1721080232730,-151.0,0.0002155,2]
[332248875,1721080232740,-151.0,0.0002155,2]
[332248877,1721080232749,-226.871292,0.0002155,2]
[332248879,1721080232758,-151.0,0.0002155,2]
[332248881,1721080232767,-226.871292,0.0002155,2]
[332248883,1721080232776,-151.0,0.0002155,2]
[332248885,1721080232785,-151.0,0.00021558,2]
[332248887,1721080232794,-151.0,0.00021558,2]
[332248889,1721080232803,-151.0,0.00021558,2]
[332248891,1721080232813,-151.0,0.00021558,2]
[332248893,1721080232821,-151.0,0.00021558,2]
[332248895,1721080232830,-151.0,0.00021558,2]
[332248896,1721080232840,-151.0,0.00021558,2]
[332248898,1721080232849,-151.0,0.00021558,2]